bitfinex-derivatives/quotes_SOLF0:USTF0_20260121
["timestamp","ask_amount","ask_price","bid_price","bid_amount"]
[1769012193280,3.14686629,129.4,129.31,10.17701796]
[1769012193281,10.10796629,129.4,129.31,10.17701796]
[1769012193583,3.14686629,129.4,129.31,3.21121796]
[1769012193784,10.10826629,129.4,129.31,3.21121796]
[1769012194183,3.14686629,129.4,129.31,3.21121796]
[1769012194488,3.14686629,129.37,129.28,3.21121796]
[1769012196286,3.14686629,129.37,129.29,3.21121796]
[1769012196989,3.14686629,129.37,129.29,10.17801796]
[1769012199184,3.14686629,129.37,129.3,6.9663]
[1769012199393,3.14686629,129.37,129.29,3.21121796]
[1769012200194,3.14686629,129.37,129.29,10.17811796]
[1769012200690,3.14686629,129.37,129.29,3.21121796]
[1769012201888,10.10826629,129.4,129.31,3.21121796]
[1769012202389,3.14686629,129.39,129.31,3.21121796]
[1769012203191,3.14686629,129.39,129.33,6.9646]
[1769012204699,3.14686629,129.39,129.34,6.9642]
[1769012204902,3.14686629,129.42,129.34,6.9642]
[1769012205597,3.14686629,129.42,129.35,6.9637]
[1769012206001,3.43684041,129.46,129.37,3.36387768]
[1769012206595,3.43684041,129.46,129.39,6.9615]
[1769012206792,3.43684041,129.46,129.37,3.36387768]
[1769012206996,3.43684041,129.45,129.37,3.36387768]
[1769012208298,3.43684041,129.45,129.35,6.9632]
[1769012208783,3.43684041,129.45,129.35,10.32707768]
[1769012209390,10.39634041,129.43,129.35,10.32707768]
[1769012209593,3.43684041,129.42,129.33,6.9643]
[1769012209792,3.43684041,129.42,129.33,10.32817768]
[1769012210898,6.9605,129.41,129.33,10.32817768]
[1769012211099,10.39734041,129.41,129.33,10.32817768]
[1769012211496,3.43684041,129.4,129.33,3.36387768]
[1769012212100,10.39804041,129.4,129.33,3.36387768]
[1769012213605,6.9616,129.39,129.33,3.36387768]
[1769012214103,111.70154041,129.43,129.34,3.36387768]
[1769012214309,6.9611,129.4,129.34,3.36387768]
[1769012217707,10.39794041,129.4,129.3,3.36387768]
[1769012218095,3.43684041,129.38,129.31,6.9657]
[1769012218297,3.43684041,129.38,129.3,3.36387768]
[1769012219301,3.43684041,129.38,129.31,10.21564133]
[1769012219503,3.43684041,129.38,129.31,3.24984133]
[1769012220908,3.43684041,129.38,129.31,10.21574133]
[1769012221507,3.4639493,129.39,129.32,10.21494133]
[1769012221918,3.4639493,129.38,129.29,3.24984133]
[1769012222110,3.4639493,129.38,129.3,6.966]
[1769012222802,3.4639493,129.38,129.3,10.21584133]
[1769012224005,3.4639493,129.38,129.3,3.24984133]
[1769012224517,3.4639493,129.38,129.32,6.9653]
[1769012224910,3.4639493,129.41,129.32,108.3472]
[1769012225220,3.4639493,129.41,129.34,3.24984133]
[1769012225614,3.4639493,129.41,129.35,6.9632]
[1769012225816,3.4639493,129.41,129.31,108.3525]
[1769012226014,3.4639493,129.41,129.31,111.60234133]
[1769012226508,3.4639493,129.4,129.33,6.9643]
[1769012226708,3.4639493,129.4,129.29,3.24984133]
[1769012227911,13.34763429,129.42,129.29,3.24984133]
[1769012227912,10.4256493,129.39,129.32,6.9653]
[1769012228312,10.4256493,129.39,129.29,3.24984133]
[1769012228712,10.4260493,129.38,129.3,3.24984133]
[1769012228915,3.4639493,129.37,129.3,3.24984133]
[1769012229116,3.4639493,129.37,129.27,3.24984133]
[1769012230011,3.4639493,129.37,129.29,10.21674133]
[1769012230203,3.4639493,129.37,129.26,108.3942]
[1769012230204,3.4639493,129.36,129.26,3.24984133]
[1769012231112,3.4639493,129.39,129.27,3.24984133]
[1769012231311,114.54120235,129.42,129.29,3.24984133]
[1769012231312,3.4639493,129.42,129.29,3.24984133]
[1769012231710,3.4639493,129.41,129.31,3.24984133]
[1769012232314,6.9611,129.4,129.32,6.9653]
[1769012232606,6.9611,129.4,129.32,10.21514133]
[1769012233611,3.4639493,129.39,129.32,6.9653]
[1769012233919,3.4639493,129.38,129.29,3.24984133]
[1769012234524,3.4639493,129.37,129.29,3.24984133]
[1769012235614,6.9638,129.35,129.29,3.24984133]
[1769012236116,3.20679661,129.36,129.26,3.28249679]
[1769012236323,3.20679661,129.35,129.26,3.28249679]
[1769012236523,6.9649,129.33,129.26,3.28249679]
[1769012237115,3.20679661,129.38,129.26,3.28249679]
[1769012237316,3.20679661,129.38,129.27,3.28249679]
[1769012238120,3.20679661,129.37,129.27,10.25009679]
[1769012238516,10.17059661,129.35,129.27,3.28249679]
[1769012238719,3.20679661,129.34,129.27,3.28249679]
[1769012239621,3.20679661,129.34,129.24,3.28249679]
[1769012240408,3.20679661,129.34,129.26,3.28249679]
[1769012240612,3.20679661,129.37,129.27,3.28249679]
[1769012241918,10.17119661,129.34,129.26,6.9681]
[1769012242117,3.20679661,129.33,129.25,3.28249679]
[1769012243015,10.17179661,129.33,129.25,3.28249679]
[1769012243412,3.20679661,129.33,129.25,3.28249679]
[1769012244025,3.20679661,129.33,129.25,10.25129679]
[1769012244328,3.20679661,129.33,129.22,3.28249679]
[1769012244628,3.20679661,129.31,129.24,6.9695]
[1769012245124,3.20679661,129.31,129.25,6.969]
[1769012246228,302.65149661,129.34,129.26,6.9684]
[1769012247129,3.20679661,129.33,129.24,10.25169679]
[1769012247322,3.20679661,129.33,129.24,3.28249679]
[1769012248327,10.17169661,129.33,129.24,3.28249679]
[1769012249331,10.17219661,129.32,129.24,3.28249679]
[1769012250222,292.48,129.34,129.25,3.28249679]
[1769012250223,6.9646,129.34,129.25,3.28249679]
[1769012250424,3.20679661,129.35,129.25,3.28249679]
[1769012251032,3.20679661,129.35,129.27,3.28249679]
[1769012251934,117.77979896,129.38,129.28,3.28249679]
[1769012252229,108.2955,129.39,129.28,3.28249679]
[1769012252230,3.20679661,129.37,129.28,3.28249679]
[1769012252628,3.20679661,129.37,129.3,3.28249679]
[1769012253932,10.16959661,129.37,129.3,3.28249679]
[1769012255327,3.20679661,129.37,129.3,10.24879679]
[1769012255932,121.71554509,129.41,129.27,108.3895]
[1769012255933,3.20679661,129.4,129.32,3.28249679]
[1769012257032,3.20679661,129.43,129.34,3.28249679]
[1769012257636,3.20679661,129.46,129.35,3.28249679]
[1769012258923,3.20679661,129.46,129.37,6.9625]
[1769012258924,3.20679661,129.45,129.37,6.9625]
[1769012259831,3.20679661,129.45,129.37,10.24499679]
[1769012261630,3.20679661,129.45,129.37,3.28249679]
[1769012261829,3.20679661,129.45,129.38,3.28249679]
[1769012262137,3.20679661,129.47,129.38,3.28249679]
[1769012263029,10.16429661,129.47,129.38,10.24439679]
[1769012263537,10.16429661,129.47,129.39,6.9614]
[1769012265434,3.20679661,129.46,129.38,3.28249679]
[1769012265825,3.20679661,129.46,129.38,10.24449679]
[1769012266025,6.9575,129.47,129.39,3.23647581]
[1769012266230,3.43022161,129.48,129.39,3.23647581]
[1769012267642,6.9574,129.47,129.39,10.19787581]
[1769012267838,10.38762161,129.47,129.39,10.19787581]
[1769012270644,6.958,129.46,129.4,3.23647581]
[1769012271342,3.43022161,129.47,129.4,10.19747581]
[1769012271740,131.4048,129.55,129.4,3.23647581]
[1769012271741,6.9562,129.49,129.4,3.23647581]
[1769012272347,10.38642161,129.49,129.4,3.23647581]
[1769012272644,3.43022161,129.48,129.4,3.23647581]
[1769012273041,3.43022161,129.48,129.41,10.19677581]
[1769012273246,3.43022161,129.48,129.42,3.23647581]
[1769012273441,3.43022161,129.5,129.42,3.23647581]
[1769012273839,3.43022161,129.5,129.43,3.23647581]
[1769012274042,3.43022161,129.54,129.43,3.23647581]
[1769012274341,3.43022161,129.52,129.44,6.9589]
[1769012274541,3.43022161,129.52,129.44,10.19537581]
[1769012274743,3.43022161,129.52,129.44,3.23647581]
[1769012275238,3.43022161,129.52,129.46,6.9577]
[1769012275748,3.43022161,129.52,129.44,3.23647581]
[1769012276438,3.43022161,129.52,129.45,111.47767581]
[1769012276637,3.43022161,129.55,129.46,3.23647581]
[1769012276837,3.43022161,129.55,129.48,3.23647581]
[1769012277438,3.43022161,129.55,129.48,111.44847581]
[1769012279040,3.39921324,129.58,129.49,3.22824563]
[1769012279437,3.39921324,129.58,129.5,10.18384563]
[1769012279841,3.39921324,129.58,129.5,3.22824563]
[1769012280448,3.39921324,129.57,129.5,3.22824563]
[1769012280744,3.39921324,129.57,129.44,108.2469]
[1769012281345,3.39921324,129.55,129.46,6.9575]
[1769012281748,3.39921324,129.55,129.41,114.53173125]
[1769012281956,3.39921324,129.55,129.42,6.9596]
[1769012281957,3.39921324,129.51,129.42,6.9596]
[1769012282642,3.39921324,129.5,129.42,6.9596]
[1769012282849,3.39921324,129.5,129.4,7.61621112]
[1769012283848,3.39921324,129.48,129.4,7.61621112]
[1769012285245,10.35611324,129.48,129.4,7.61621112]
[1769012286148,3.39921324,129.48,129.41,7.61601112]
[1769012286541,10.35531324,129.5,129.41,7.61601112]
[1769012286738,10.35531324,129.5,129.43,0.65561112]
[1769012287354,3.39921324,129.49,129.4,7.61621112]
[1769012287953,6.9575,129.47,129.4,0.65561112]
[1769012288148,6.9575,129.47,129.43,0.05784169]
[1769012288352,10.35681324,129.47,129.43,0.05784169]
[1769012288949,10.35571324,129.49,129.43,0.05784169]
[1769012290060,6.9555,129.51,129.44,0.65561112]
[1769012290261,3.39921324,129.52,129.44,0.65561112]
[1769012290458,3.39921324,129.51,129.43,0.05784169]
[1769012290757,3.39921324,129.5,129.41,7.61571112]
[1769012291857,3.39921324,129.5,129.44,0.04934017]
[1769012292063,10.35511324,129.5,129.44,0.04934017]
[1769012292856,13.21673125,129.52,129.44,0.04934017]
[1769012293062,3.39921324,129.53,129.44,0.70495129]
[1769012293363,3.39921324,129.53,129.44,0.65561112]
[1769012294965,3.39921324,129.53,129.46,6.9577]
[1769012295358,3.39921324,129.53,129.44,0.65561112]
[1769012295565,3.39921324,129.53,129.47,6.9572]
[1769012296264,3.39921324,129.53,129.44,108.90301112]
[1769012297965,3.39921324,129.53,129.46,6.9578]
[1769012298163,3.39921324,129.53,129.45,0.6571307]
[1769012298769,3.39921324,129.53,129.47,6.9572]
[1769012299660,121.56567399,129.58,129.45,0.6571307]
[1769012299861,3.46250259,129.57,129.48,0.6571307]
[1769012300266,3.46250259,129.57,129.51,6.9548]
[1769012300765,3.46250259,129.57,129.5,0.6571307]
[1769012301168,10.41320259,129.6,129.51,7.6121307]
[1769012301461,3.46250259,129.59,129.48,0.6571307]
[1769012301657,3.46250259,129.58,129.48,0.6571307]
[1769012302255,3.46250259,129.58,129.42,108.2614]
[1769012302256,3.46250259,129.54,129.45,0.6571307]
[1769012303968,6.9542,129.53,129.45,7.6150307]
[1769012304171,6.9542,129.53,129.45,0.6571307]
[1769012304874,6.9535,129.55,129.45,0.6571307]
[1769012305961,6.9535,129.55,129.48,6.9567]
[1769012306470,3.46250259,129.56,129.48,0.6571307]
[1769012307871,3.46250259,129.56,129.49,6.9561]
[1769012308872,3.46250259,129.55,129.49,6.9561]
[1769012309573,3.46250259,129.55,129.5,6.9557]
[1769012309871,10.41440259,129.58,129.48,0.6571307]
[1769012310258,3.46250259,129.57,129.48,0.6571307]
[1769012310868,3.46250259,129.57,129.51,6.9551]
[1769012313466,6.00768085,129.6,129.51,0.6571307]
[1769012314073,3.46250259,129.59,129.51,0.6571307]
[1769012315471,6.00768085,129.58,129.51,0.6571307]
[1769012315660,6.00768085,129.58,129.54,0.05480592]
[1769012316676,3.46250259,129.57,129.49,6.9557]
[1769012317175,3.51374097,129.57,129.49,0.71193662]
[1769012317377,3.46250259,129.57,129.49,0.71193662]
[1769012317568,3.46250259,129.57,129.5,6.9556]
[1769012318075,0.0563757,129.55,129.5,6.9556]
[1769012321781,7.0093757,129.55,129.49,0.71193662]
[1769012321983,3.51887829,129.55,129.48,6.9562]
[1769012322171,3.51887829,129.55,129.46,0.71193662]
[1769012322377,3.51887829,129.55,129.49,6.9562]
[1769012322872,3.46250259,129.55,129.49,6.9562]
[1769012323069,0.04996272,129.53,129.49,6.9562]
[1769012323881,0.04996272,129.53,129.5,6.9554]
[1769012324482,10.41440259,129.57,129.5,6.9554]
[1769012324682,3.46250259,129.56,129.51,6.955]
[1769012325681,3.38939666,129.58,129.5,0.7116477]
[1769012326288,3.38939666,129.58,129.51,0.7116477]
[1769012328088,3.38939666,129.58,129.54,6.9535]
[1769012328383,3.38939666,129.58,129.51,0.7116477]
[1769012329989,3.38939666,129.58,129.53,6.954]
[1769012330286,3.38939666,129.58,129.51,0.7116477]
[1769012330791,3.38939666,129.58,129.54,6.9534]
[1769012332191,3.38939666,129.58,129.51,108.9007477]
[1769012332192,3.38939666,129.58,129.52,6.9541]
[1769012333590,3.38939666,129.58,129.51,6.9551]
[1769012334892,3.38939666,129.57,129.51,6.9551]
[1769012335677,10.34129666,129.57,129.51,6.9551]
[1769012338087,3.38939666,129.56,129.49,0.7116477]
[1769012338286,3.38939666,129.54,129.49,6.9558]
[1769012339284,3.38939666,129.54,129.5,6.9555]
[1769012341194,3.38939666,129.54,129.49,6.9562]
[1769012341498,3.20343121,129.53,129.49,6.9562]
[1769012341695,3.20343121,129.53,129.47,7.66835701]
[1769012342493,3.20343121,129.51,129.47,6.9568]
[1769012343092,3.20343121,129.51,129.45,6.9579]
[1769012343394,2.54588418,129.5,129.45,6.9579]
[1769012343701,2.54588418,129.5,129.43,108.96355701]
[1769012344997,2.54588418,129.5,129.43,0.71155701]
[1769012345199,5.74931539,129.5,129.43,0.71155701]
[1769012345401,5.74931539,129.5,129.44,6.9584]
[1769012346106,2.54588418,129.48,129.43,0.71155701]
[1769012346400,3.20343121,129.54,129.43,0.71155701]
[1769012346604,3.20343121,129.5,129.43,0.71155701]
[1769012347305,108.1607,129.55,129.43,0.71155701]
[1769012347306,2.54588418,129.54,129.46,0.71155701]
[1769012347511,5.74931539,129.54,129.46,0.71155701]
[1769012348908,3.20343121,129.53,129.46,0.71155701]
[1769012349407,3.20343121,129.53,129.46,7.66885701]
[1769012349818,3.20343121,129.53,129.47,6.9573]
[1769012350115,3.20343121,129.53,129.47,7.66885701]
[1769012351005,3.20343121,129.53,129.47,0.71155701]
[1769012351210,3.20343121,129.53,129.49,0.05427196]
[1769012351817,3.20343121,129.52,129.45,2.54588418]
[1769012352018,3.20343121,129.51,129.44,0.71155701]
[1769012352722,3.20343121,129.5,129.44,0.71155701]
[1769012352914,3.20343121,129.49,129.41,3.31171315]
[1769012353221,10.15963121,129.49,129.41,3.31171315]
[1769012353414,0.05086044,129.48,129.41,3.31171315]
[1769012353615,0.05086044,129.48,129.41,10.27201315]
[1769012354523,7.00756044,129.48,129.42,6.96]
[1769012355826,10.42598765,129.48,129.41,3.31171315]
[1769012356012,10.42598765,129.48,129.39,303.3808325]
[1769012356013,10.37572721,129.47,129.39,303.3808325]
[1769012356323,3.41842721,129.46,129.39,303.3808325]
[1769012356712,3.41842721,129.45,129.39,309.5709857]
[1769012357022,0.05555082,129.44,129.39,302.6098857]
[1769012357929,3.41842721,129.47,129.4,0.7709468]
[1769012358718,3.41842721,129.47,129.4,3.31683098]
[1769012360028,3.41842721,129.47,129.42,6.9598]
[1769012363431,3.41842721,129.47,129.4,10.27743098]
[1769012364225,3.41842721,129.47,129.41,6.9605]
[1769012364727,3.41842721,129.47,129.42,6.9599]
[1769012365124,3.41842721,129.47,129.4,3.31683098]
[1769012365324,3.41842721,129.47,129.41,6.9605]
[1769012365630,3.41842721,129.47,129.39,302.6098857]
[1769012365932,3.41842721,129.45,129.39,302.6098857]
[1769012366424,10.37722721,129.45,129.39,302.6098857]
[1769012367038,3.41842721,129.43,129.36,7.7336468]
[1769012367736,3.41842721,129.43,129.35,2.54588418]
[1769012367929,5.96431139,129.42,129.34,0.7709468]
[1769012368137,3.41842721,129.41,129.34,0.7709468]
[1769012368835,10.37912721,129.41,129.34,7.7351468]
[1769012369435,3.41842721,129.41,129.35,7.7345468]
[1769012370929,3.41842721,129.41,129.33,10.28123098]
[1769012371733,10.37952721,129.4,129.33,3.31683098]
[1769012371930,3.41842721,129.39,129.33,0.7709468]
[1769012372532,3.41842721,129.41,129.34,3.31683098]
[1769012373434,3.41842721,129.39,129.32,7.7359468]
[1769012373938,3.41842721,129.41,129.35,2.54588418]
[1769012374337,3.41842721,129.41,129.35,3.31683098]
[1769012374936,3.41842721,129.41,129.35,10.28043098]
[1769012375534,10.37912721,129.41,129.35,0.7709468]
[1769012375838,10.37912721,129.41,129.34,2.54588418]
[1769012376035,3.41842721,129.4,129.33,7.7352468]
[1769012376236,108.2623,129.43,129.31,10.28253098]
[1769012376237,3.41842721,129.38,129.31,10.28253098]
[1769012376442,3.41842721,129.38,129.31,0.7709468]
[1769012377233,2.54588418,129.39,129.29,2.54588418]
[1769012377234,10.38172721,129.36,129.29,10.28363098]
[1769012377434,10.38172721,129.36,129.29,7.7377468]
[1769012377940,10.38222721,129.35,129.27,10.28453098]
[1769012378142,3.41842721,129.34,129.27,7.7386468]
[1769012378340,10.38272721,129.34,129.27,0.7709468]
[1769012379043,3.41842721,129.34,129.27,0.7709468]
[1769012379346,3.41842721,129.34,129.27,3.31683098]
[1769012379844,3.41842721,129.34,129.28,6.9675]
[1769012380338,10.38292721,129.34,129.27,0.7709468]
[1769012380545,3.41842721,129.33,129.27,0.7709468]
[1769012381837,12.92801139,129.36,129.27,0.7709468]
[1769012382430,3.41842721,129.35,129.27,0.7709468]
[1769012382637,3.41842721,129.34,129.27,6.9676]
[1769012382946,3.41842721,129.33,129.27,6.9676]
[1769012385240,3.41842721,129.33,129.28,6.9675]
[1769012386446,3.35135851,129.35,129.29,7.74034595]
[1769012388946,3.35135851,129.35,129.29,6.9667]
[1769012389348,3.35135851,129.35,129.3,6.9662]
[1769012391539,3.35135851,129.35,129.29,6.9669]
[1769012392043,3.35135851,129.34,129.27,2.55478707]
[1769012392250,3.35135851,129.33,129.25,0.77364595]
[1769012394153,3.35135851,129.32,129.26,6.9685]
[1769012395044,3.35135851,129.34,129.27,0.77364595]
[1769012395647,3.35135851,129.33,129.22,0.77364595]
[1769012395849,3.35135851,129.3,129.22,3.32843302]
[1769012396944,3.35135851,129.3,129.24,6.9696]
[1769012399746,12.70542714,129.33,129.25,0.76954638]
[1769012400748,3.18534007,129.32,129.26,6.9685]
[1769012401353,5.74012714,129.34,129.27,6.968]
[1769012401554,3.18534007,129.33,129.27,6.968]
[1769012401957,3.18534007,129.33,129.25,0.76954638]
[1769012401958,3.18534007,129.33,129.21,132.44924638]
[1769012402154,5.74012714,129.29,129.21,0.76954638]
[1769012402858,3.18534007,129.28,129.21,0.76954638]
[1769012403047,3.18534007,129.28,129.22,6.9707]
[1769012404754,3.18534007,129.28,129.23,6.9702]
[1769012404956,5.74012714,129.27,129.21,0.76954638]
[1769012405252,3.18534007,129.26,129.19,0.76954638]
[1769012405456,2.55478707,129.25,129.19,0.76954638]
[1769012405848,2.55478707,129.25,129.16,3.32433345]
[1769012406155,3.18534007,129.24,129.16,0.76954638]
[1769012406945,3.18534007,129.24,129.17,6.973]
[1769012407459,6.9692,129.25,129.18,0.76954638]
[1769012407759,3.18534007,129.27,129.18,0.76954638]
[1769012408056,3.18534007,129.27,129.2,0.76954638]
[1769012408256,3.18534007,129.29,129.2,0.76954638]
[1769012408558,3.18534007,129.28,129.21,6.971]
[1769012409554,3.18534007,129.27,129.17,0.76954638]
[1769012410658,3.18534007,129.26,129.17,0.76954638]
[1769012410860,3.18534007,129.26,129.14,109.26584638]
[1769012411162,3.18534007,129.24,129.16,6.9736]
[1769012412062,3.18534007,129.23,129.16,6.9736]
[1769012413274,3.18534007,129.21,129.14,6.9748]
[1769012413464,3.18534007,129.21,129.11,109.28964638]
[1769012413668,3.18534007,129.21,129.12,0.76954638]
[1769012414172,3.18534007,129.2,129.1,109.29974638]
[1769012414471,3.18534007,129.2,129.11,109.29624638]
[1769012414770,3.18534007,129.2,129.12,0.76954638]
[1769012416463,114.6987773,129.25,129.12,0.76954638]
[1769012416464,3.35228863,129.23,129.14,7.74432664]
[1769012417069,3.35228863,129.22,129.14,6.9746]
[1769012418471,3.35228863,129.21,129.14,6.9746]
[1769012420674,3.35228863,129.21,129.14,7.74432664]
[1769012421071,3.35228863,129.21,129.14,6.9746]
[1769012421266,3.35228863,129.21,129.12,0.76972664]
[1769012423072,3.35228863,129.24,129.14,0.76972664]
[1769012423275,3.35228863,129.24,129.15,0.76972664]
[1769012423567,3.35228863,129.24,129.18,7.74252664]
[1769012423777,10.32078863,129.27,129.18,0.76972664]
[1769012424170,3.35228863,129.25,129.15,109.25982664]
[1769012424368,3.35228863,129.25,129.16,0.76972664]
[1769012425276,3.35228863,129.25,129.17,0.76972664]
[1769012426979,3.35228863,129.25,129.18,6.9728]
[1769012427877,3.35228863,129.24,129.18,6.9728]
[1769012428072,3.35228863,129.24,129.15,0.76972664]
[1769012429379,3.35228863,129.24,129.18,6.9729]
[1769012429774,3.35228863,129.24,129.16,0.76972664]
[1769012430077,3.35228863,129.28,129.16,0.76972664]
[1769012430281,3.35228863,129.31,129.18,0.76972664]
[1769012431475,114.6385773,129.32,129.21,0.76972664]
[1769012431476,3.35228863,129.29,129.21,0.76972664]
[1769012432677,3.35228863,129.27,129.18,0.76972664]
[1769012433285,3.35228863,129.25,129.15,0.76972664]
[1769012434287,3.35228863,129.23,129.15,0.76972664]
[1769012435985,3.35228863,129.25,129.17,0.76972664]
[1769012436483,3.35228863,129.25,129.2,6.9717]
[1769012436788,299.0021773,129.32,129.18,0.76972664]
[1769012436789,3.35228863,129.28,129.18,0.76972664]
[1769012437978,10.31988863,129.28,129.21,6.9712]
[1769012438678,10.31988863,129.28,129.17,108.4739]
[1769012438679,3.35228863,129.28,129.2,0.76972664]
[1769012438989,3.35228863,129.28,129.22,6.9707]
[1769012439292,3.35228863,129.28,129.21,6.9711]
[1769012439481,3.35228863,129.28,129.2,0.76972664]
[1769012439883,3.35228863,129.31,129.21,0.76972664]
[1769012440689,10.31868863,129.3,129.23,6.9701]
[1769012440880,3.35228863,129.29,129.19,108.4553]
[1769012441381,3.35228863,129.27,129.21,6.9708]
[1769012441783,3.35228863,129.27,129.18,0.76972664]
[1769012441985,3.35228863,129.26,129.2,6.9718]
[1769012443187,108.3702,129.3,129.15,6.27913951]
[1769012443188,3.35228863,129.25,129.15,0.76972664]
[1769012444791,3.35228863,129.23,129.16,6.9737]
[1769012450186,3.35228863,129.23,129.16,0.76728093]
[1769012450380,3.23222885,129.25,129.16,0.76728093]
[1769012450580,3.23222885,129.25,129.18,6.9728]
[1769012450881,115.55224274,129.28,129.12,108.5134]
[1769012451082,3.23222885,129.23,129.14,6.975]
[1769012451286,3.23222885,129.22,129.12,0.76728093]
[1769012452195,10.20412885,129.2,129.13,6.9755]
[1769012452988,3.23222885,129.2,129.13,6.9755]
[1769012454993,3.23222885,129.19,129.12,0.76728093]
[1769012456992,3.23222885,129.19,129.12,7.74308093]
[1769012457199,3.23222885,129.15,129.08,0.76728093]
[1769012457489,3.23222885,129.15,129.05,108.5709]
[1769012457692,3.23222885,129.15,129.07,6.9786]
[1769012458095,3.23222885,129.15,129.05,1.34802735]
[1769012458306,3.23222885,129.13,128.97,0.76728093]
[1769012458486,3.34716232,129.08,128.97,0.76728093]
[1769012458685,3.34716232,129.08,128.97,7.75108093]
[1769012458886,3.34716232,129.08,128.98,108.6353]
[1769012459295,3.34716232,129.11,129.01,0.77036775]
[1769012460098,3.34716232,129.11,129.01,115.5921]
[1769012460394,3.34716232,129.11,129.03,0.77036775]
[1769012461192,3.34716232,129.16,129.04,0.77036775]
[1769012461395,3.34716232,129.14,129.04,6.9802]
[1769012461586,3.34716232,129.14,129.02,108.5986]
[1769012461587,3.34716232,129.14,129.02,109.36896775]
[1769012461783,3.34716232,129.13,129.02,0.77036775]
[1769012461991,3.34716232,129.1,129.0,6.9825]
[1769012462196,3.34716232,129.1,128.99,0.77036775]
[1769012462501,3.34716232,129.09,128.99,0.77036775]
[1769012462891,3.34716232,129.08,128.99,0.77036775]
[1769012463393,3.34716232,129.08,128.97,108.6417]
[1769012463597,3.34716232,129.08,128.97,109.41206775]
[1769012463794,3.34716232,129.08,128.97,0.77036775]
[1769012464595,3.34716232,129.06,128.97,0.77036775]
[1769012465191,3.34716232,129.06,128.97,7.75436775]
[1769012465401,3.34716232,129.06,128.97,0.77036775]
[1769012466304,3.34716232,129.06,128.97,7.75416775]
[1769012467001,3.34716232,129.05,128.95,16.74066351]
[1769012467497,3.34716232,129.03,128.95,16.74066351]
[1769012467697,3.34716232,129.03,128.95,9.75556351]
[1769012468096,3.34716232,129.01,128.95,6.28647186]
[1769012468405,3.34716232,129.01,128.95,2.708881]
[1769012468705,10.32966232,129.01,128.95,2.708881]
[1769012469295,3.34716232,129.01,128.95,2.708881]
[1769012470103,3.34716232,129.04,128.96,3.16126194]
[1769012471201,3.34716232,129.04,128.96,10.14586194]
[1769012472007,10.32776232,129.04,128.96,3.16126194]
[1769012472203,10.32776232,129.04,128.95,2.708881]
[1769012472204,108.605,129.02,128.95,2.708881]
[1769012472402,3.34716232,129.01,128.95,2.708881]
[1769012473205,3.34716232,129.04,128.95,2.708881]
[1769012473499,3.34716232,129.03,128.95,2.708881]
[1769012474211,3.34716232,129.03,128.95,5.87014294]
[1769012475511,3.34716232,129.02,128.95,2.708881]
[1769012475711,3.2825459,129.01,128.95,8.1e-05]
[1769012476510,3.2825459,128.98,128.89,3.41838055]
[1769012477215,3.2825459,128.96,128.86,112.15068055]
[1769012477413,3.2825459,128.96,128.87,3.41838055]
[1769012478315,10.2661459,128.99,128.89,3.41838055]
[1769012478519,3.2825459,128.99,128.89,3.41838055]
[1769012479022,3.2825459,128.99,128.91,3.41838055]
[1769012479314,3.2825459,129.06,128.95,3.41838055]
[1769012479815,3.2825459,129.06,128.98,3.41838055]
[1769012480012,3.2825459,129.09,128.98,3.41838055]
[1769012481014,6.9786,129.08,128.99,10.40118055]
[1769012481214,3.2825459,129.07,128.96,3.41838055]
[1769012481614,3.2825459,129.07,128.98,10.40188055]
[1769012482512,3.2825459,129.07,128.99,6.9829]
[1769012483222,3.2825459,129.07,128.98,3.41838055]
[1769012483717,10.2621459,129.06,128.98,3.41838055]
[1769012484416,10.2621459,129.06,128.98,10.40198055]
[1769012484922,10.2621459,129.06,128.98,3.41838055]
[1769012486422,10.2625459,129.05,128.98,3.41838055]
[1769012486821,3.2825459,129.05,128.98,10.40198055]
[1769012487030,6.9793,129.07,128.99,3.41838055]
[1769012488018,6.9793,129.07,128.99,10.40128055]
[1769012489528,10.2618459,129.07,128.99,10.40128055]
[1769012489736,3.2825459,129.07,128.96,3.41838055]
[1769012490023,3.2825459,129.05,128.96,3.41838055]
[1769012491423,3.2825459,129.03,128.93,3.41838055]
[1769012492630,3.2825459,129.02,128.93,3.41838055]
[1769012493725,3.2825459,129.02,128.94,10.40408055]
[1769012494822,3.2825459,129.02,128.95,6.9853]
[1769012496432,10.2641459,129.02,128.95,6.9853]
[1769012496632,3.2825459,129.05,128.96,10.40288055]
[1769012498025,10.2633459,129.04,128.96,10.40288055]
[1769012498421,3.2825459,129.04,128.94,6.9857]
[1769012498628,3.2825459,129.04,128.94,10.40408055]
[1769012499026,3.2825459,129.04,128.95,3.41838055]
[1769012499337,6.9816,129.02,128.95,10.40368055]
[1769012500528,6.9813,129.03,128.95,10.40368055]
[1769012501723,6.9813,129.03,128.96,6.9847]
[1769012501928,6.9813,129.03,128.96,10.40308055]
[1769012502833,6.9816,129.02,128.96,3.41838055]
[1769012503028,3.2825459,129.02,128.93,3.41838055]